Cogmind - Beta 12 @@@ ROGUE MODE // 2023.04.16 @ 21:41:32 Player: Mr Goldstein Result: Destroyed by Y-54 Guardian with Gatling Laser Performance ------------- Evolutions (4) 2000 Regions Visited (11) 2200 Robots Destroyed (283) 1415 Value Destroyed (9868) 9868 Prototype IDs (31) 620 Alien Tech Used (0) 0 Bonus (3611) 3611 TOTAL SCORE: 19714 Bonus ------- High Alert Combat Kills 2277 Follower Combat Kills 434 Entered Garrisons 400 Used RIF Installer 500 Cogmind --------- Core Integrity 0/850 Matter 300/300 Energy 88/100 System Corruption 5% Temperature Cool (6) Movement Core (50) Location -6/Garrison Parts ------- > --- POWER (2) -------- (None) > --- PROPULSION (3) --- (None) > --- UTILITY (8) ------ Improved Signal Interpreter Advanced Targeting Computer Target Analyzer Relay Coupler [Grunt] (14) > --- WEAPON (2) ------- Longsword +1 > --- INVENTORY (5) ---- Advanced Heat Sink Improved Signal Interpreter Hacking Suite Hacking Suite Rocket Launcher Peak State ------------ > --- POWER ------------ Micro Nuclear Core Fission Core > --- PROPULSION ------- Armored Wheel Armored Huge Wheel > --- UTILITY ---------- Improved Heat Sink Advanced Heat Sink Huge Storage Unit Advanced Targeting Computer Target Analyzer Energy Filter Improved Light Armor Plating Advanced Shield Generator > --- WEAPON ----------- Heavy Laser Gatling Laser > --- INVENTORY -------- Light Deuterium Engine Wheel Improved Heat Sink Medium Battery Improved Signal Interpreter Improved Light Armor Plating Improved Light Armor Plating Reactive Plating Hacking Suite Hacking Suite Hacking Suite System Shield System Shield System Shield Relay Coupler [NC] Improved Arc Projector Heavy Laser Heavy Laser Heavy Laser Heavy Particle Cannon Heavy Plasma Cannon Rocket Launcher Rocket Launcher Remote Datajack Longsword +1 [Rating: 63] Favorites ----------- Power Ion Engine Engine Ion Engine Power Core Micro Nuclear Core Reactor Light Antimatter Reactor Propulsion Wheel Wheel Wheel Utility Huge Storage Unit Device Improved Heat Sink Storage Huge Storage Unit Processor Advanced Targeting Computer Hackware Relay Coupler [Grunt] Protection Improved Light Armor Plating Weapon Advanced Beam Cannon Energy Gun Heavy Laser Energy Cannon Advanced Beam Cannon Ballistic Gun Light Assault Rifle Launcher Rocket Launcher Special Weapon Remote Datajack Slashing Weapon Longsword +1 Build | -11 -10 -10 -9 -9 -9 -8 -8 -8 -7 -6 -6 ------- Run | Jun Mat Min Mat Min Exi Min Mat Gar Fac Fac Gar Slots Evolved 8 | . . . 2 . . . 2 . 2 2 . Power 1 | . . . . . . . . . . 1 . Propulsion 1 | . . . . . . . . . 1 . . Utility 6 | . . . 2 . . . 2 . 1 1 . Weapon . | . . . . . . . . . . . . Parts Attached 235 | 7 13 2 35 . 7 . 26 40 24 53 28 Power 30 | 2 . . 8 . . . 3 2 4 7 4 Engine 17 | 2 . . 6 . . . 2 . 2 3 2 Core 12 | . . . 2 . . . 1 2 2 3 2 Reactor 1 | . . . . . . . . . . 1 . Propulsion 34 | 2 2 . 5 . . . 4 2 5 9 5 Treads . | . . . . . . . . . . . . Leg . | . . . . . . . . . . . . Wheel 34 | 2 2 . 5 . . . 4 2 5 9 5 Hover . | . . . . . . . . . . . . Flight . | . . . . . . . . . . . . Utility 89 | 1 5 . 13 . 7 . 14 13 6 23 7 Device 45 | . 3 . 6 . 4 . 6 5 4 13 4 Storage 4 | 1 2 . . . . . . . . 1 . Processor 6 | . . . . . . . 3 . 2 1 . Hackware 7 | . . . . . . . . 6 . . 1 Protection 27 | . . . 7 . 3 . 5 2 . 8 2 Artifact . | . . . . . . . . . . . . Weapon 82 | 2 6 2 9 . . . 5 23 9 14 12 Energy Gun 35 | 2 2 1 2 . . . 3 4 4 12 5 Energy Cannon 23 | . 1 1 6 . . . 2 5 4 2 2 Ballistic Gun 1 | . 1 . . . . . . . . . . Ballistic Cannon . | . . . . . . . . . . . . Launcher 8 | . 2 . 1 . . . . 4 . . 1 Special Weapon 8 | . . . . . . . . 4 1 . 3 Impact Weapon . | . . . . . . . . . . . . Slashing Weapon 7 | . . . . . . . . 6 . . 1 Piercing Weapon . | . . . . . . . . . . . . Special Melee Weapon . | . . . . . . . . . . . . Unidentified Prototypes 2 | . . . . . . . 1 . . 1 . Parts Lost 88 | . 5 . 12 . . . 13 5 6 24 23 Power 17 | . . . 2 . . . 3 2 1 4 5 Propulsion 20 | . 2 . 3 . . . 3 1 3 3 5 Utility 32 | . 1 . 5 . . . 4 1 2 12 7 Weapon 19 | . 2 . 2 . . . 3 1 . 5 6 Highest Loss Streak 12 | . 2 . 3 . . . 4 5 4 12 7 To Critical Strikes . | . . . . . . . . . . . . Average Slot Usage (%) 95 | . 98 100 98 100 99 100 99 99 93 90 81 Engine 6 | . 14 14 7 11 11 11 8 . 1 2 4 Core 4 | . . . 2 . . . . 8 4 9 5 Wheel 19 | . 27 28 21 22 22 22 17 17 17 13 8 Device 17 | . 12 14 21 22 22 22 18 15 18 21 10 Storage 9 | . 14 14 11 11 11 11 9 9 7 6 6 Processor 9 | . . . . . . . 18 18 15 14 20 Protection 6 | . . . 10 11 10 11 8 9 6 6 5 Energy Gun 8 | . 20 13 2 . . . 4 8 5 11 6 Energy Cannon 9 | . 7 13 19 22 22 22 13 3 9 . 3 Naked Turns . | . . . . . . . . . . . . Heaviest Build 131 | 13 92 92 104 102 102 100 107 115 118 131 131 Greatest Support 44 | 32 32 20 22 22 22 22 22 26 36 44 30 Greatest Overweight (x) 34 | . 8 4 8 4 4 4 10 10 10 34 11 Average Overweight (x) 3 | . 3 4 4 4 4 4 4 3 4 2 8 Largest Inventory Capacity 25 | 8 25 25 25 25 25 25 25 25 25 25 25 Average Capacity 24 | 6 24 25 25 25 25 25 25 25 25 25 24 Most Carried 25 | 2 21 20 25 24 25 25 25 25 25 25 24 Average Carried 21 | 1 16 19 24 24 24 25 23 24 24 23 17 Final Capacity 25 | 8 25 25 25 25 25 25 25 25 25 25 5 Final Carried 25 | 2 21 20 25 24 25 25 25 25 25 23 5 Class Distribution -------------------- 65% | Scavenger-Mutant 34% | Mutant Dominant Class ---------------- Scavenger-Mutant | -10/Materials Mutant | -10/Mines Scavenger-Mutant | -9/Materials Scavenger-Mutant | -9/Mines Scavenger-Mutant | -9/Exiles Scavenger-Mutant | -8/Mines Scavenger-Mutant | -8/Materials Mutant | -8/Garrison Scavenger-Mutant | -7/Factory Scavenger-Mutant | -6/Factory Scavenger-Mutant | -6/Garrison Resources | -11 -10 -10 -9 -9 -9 -8 -8 -8 -7 -6 -6 ----------- Run | Jun Mat Min Mat Min Exi Min Mat Gar Fac Fac Gar Matter Collected 2819 | 247 147 40 526 . 83 . 227 498 190 581 280 Remotely . | . . . . . . . . . . . . Salvage Created 12507 | . 1156 . 2864 54 313 . 2570 476 764 3359 951 Parts 602 | . 70 . 181 4 16 . 114 29 30 118 40 Haulers Intercepted 17 | . 2 . 6 . . . 4 . . 5 . Recyclers Shooed 12 | . . . 2 . . . 2 . . 8 . Parts Field Recycled . | . . . . . . . . . . . . Retrieved Matter . | . . . . . . . . . . . . Parts Self-Destructed . | . . . . . . . . . . . . Prevented . | . . . . . . . . . . . . Kills | -11 -10 -10 -9 -9 -9 -8 -8 -8 -7 -6 -6 ------- Run | Jun Mat Min Mat Min Exi Min Mat Gar Fac Fac Gar Combat Hostiles Destroyed 214 | . 21 . 51 3 . . 40 23 10 40 26 Melee 4 | . . . . . . . . 2 . 1 1 Guns 72 | . 12 . 7 . . . 7 . 4 25 17 Cannons 97 | . 8 . 38 3 . . 29 7 5 6 1 AOE 22 | . . . 3 . . . . 12 . 1 6 Classes Destroyed 16 | . 9 . 3 . . . 1 1 1 1 . Worker 20 | . 3 . 6 . . . 3 . 1 7 . Builder 8 | . 1 . 1 . . . 1 . 2 3 . Tunneler 6 | . 1 . 2 . . . 2 . . 1 . Hauler 17 | . 2 . 6 . . . 4 . . 5 . Recycler 13 | . 1 . 4 . . . 2 . 3 3 . Mechanic 3 | . . . 1 . . . 1 . . 1 . Operator 6 | . 2 . 2 . . . 2 . . . . Watcher 14 | . 3 . 5 . . . 2 . . 4 . Swarmer 45 | . 3 . 7 3 . . 3 12 . 3 14 Saboteur 1 | . . . . . . . . . . 1 . Grunt 117 | . 18 . 32 . . . 29 1 7 25 5 Brawler 2 | . . . . . . . 1 . . 1 . Duelist 8 | . . . 3 . . . 1 . . 1 3 Sentry 29 | . . . 9 . . . 6 7 1 3 3 Hunter 1 | . . . . . . . . . 1 . . Programmer 11 | . . . . . . . . 3 1 6 1 Best Kill Streak 8 | . 4 . 5 3 . . 6 4 4 8 6 Combat Bots Only 6 | . 3 . 4 3 . . 6 4 4 4 6 Max Kills in Single Turn 4 | . 2 . 3 1 . . 2 4 1 2 3 Gunslinging . | . . . . . . . . . . . . Exploded 4 | . . . 3 . . . . 4 . 1 3 Melee 1 | . . . . . . . . 1 . 1 1 Uniques/NPCs Destroyed . | . . . . . . . . . . . . Combat | -11 -10 -10 -9 -9 -9 -8 -8 -8 -7 -6 -6 -------- Run | Jun Mat Min Mat Min Exi Min Mat Gar Fac Fac Gar Damage Taken 10931 | 1 686 . 1788 83 . . 1910 795 401 3046 2221 Core 1880 | . 209 . 268 10 . . 382 145 16 407 443 Absorbed by Shields 721 | . . . . . . . . 115 109 497 . Redirected to Shielding 9 | . . . 9 . . . . . . . . Regen/Repaired (Parts) 97 | . . . 69 . . . 28 . . . . Core Remaining (%) 49 | 100 . 16 . . . 30 . 4 97 . . Volleys Fired 745 | . 118 1 155 5 9 . 135 47 31 183 61 Largest 2 | . 2 2 2 2 2 . 2 2 2 2 2 Hottest 159 | . 100 100 136 136 136 . 137 128 149 159 159 Shots Fired 1451 | . 237 2 302 11 20 . 265 79 62 356 117 Gun 758 | . 186 1 52 . . . 69 22 18 320 90 Cannon 669 | . 51 1 246 11 20 . 196 42 44 36 22 Launcher 16 | . . . 4 . . . . 8 . . 4 Special 8 | . . . . . . . . 7 . . 1 Kinetic 5 | . 5 . . . . . . . . . . Thermal 1398 | . 232 2 298 11 20 . 265 64 62 353 91 Explosive 16 | . . . 4 . . . . 8 . . 4 Electromagnetic 24 | . . . . . . . . . . 3 21 Robot Hit Streak 53 | . 27 1 21 5 10 . 26 27 32 53 14 Robot Miss Streak 7 | . 7 2 4 2 1 . 3 2 1 5 2 Penetration Max . | . . . . . . . . . . . . Secondary Targets 7 | . 2 . . . . . . . . 3 2 Max Gunslinging Chain 1 | . 1 . . . . . . . . 1 1 Shots Hit Robots 1040 | . 159 1 182 6 12 . 208 53 53 283 83 Core Hits 499 | . 57 . 85 3 8 . 89 30 24 161 42 Critical Kills 5 | . . . 1 . . . 1 . 2 1 . Critical Parts Destroyed . | . . . . . . . . . . . . Critical Strikes 43 | . 1 . 2 . . . 2 1 2 26 9 Burn 34 | . 1 . 1 . . . 1 1 . 24 6 Meltdown 5 | . . . 1 . . . 1 . 2 1 . Corrupt 3 | . . . . . . . . . . 1 2 Sever 1 | . . . . . . . . . . . 1 Melee Attacks 27 | . . . . . . . . 23 . . 4 Impact . | . . . . . . . . . . . . Slashing 27 | . . . . . . . . 23 . . 4 Piercing . | . . . . . . . . . . . . Sneak Attacks 2 | . . . . . . . . 2 . . . Combat Hostiles 2 | . . . . . . . . 2 . . . Follow-up Attacks . | . . . . . . . . . . . . Damage Inflicted 23732 | 3 2102 17 3967 177 273 . 4480 2133 1317 6849 2414 Guns 10591 | . 1465 . 491 . . . 1150 156 397 5600 1332 Cannons 10854 | . 637 17 3260 177 273 . 3327 799 920 931 513 Explosions 1724 | . . . 174 . . . . 860 . 302 388 Melee 499 | . . . . . . . . 318 . . 181 Ramming 64 | 3 . . 42 . . . 3 . . 16 . Kinetic 12 | . 12 . . . . . . . . . . Thermal 21279 | . 2090 17 3751 177 273 . 4477 955 1317 6757 1465 Explosive 1422 | . . . 174 . . . . 860 . . 388 Electromagnetic 456 | . . . . . . . . . . 76 380 Impact . | . . . . . . . . . . . . Slashing 499 | . . . . . . . . 318 . . 181 Piercing . | . . . . . . . . . . . . Highest Corruption 16 | . 2 2 5 5 5 5 . . . 16 5 Average Corruption 4 | . 2 2 5 5 5 5 . . . 5 4 Corruption Purged 17 | . . . . . . . . . . 17 . Corruption Blocked . | . . . . . . . . . . . . Effects 202 | . 11 . 88 3 17 . . . . 53 30 Message Errors 35 | . 4 . 16 1 4 . . . . 6 4 Matter Fused 49 | . 3 . 21 . 3 . . . . 15 7 Heat Flow Errors 24 | . . . 11 . 2 . . . . 6 5 Energy Discharges 16 | . . . 10 1 1 . . . . 2 2 Parts Rejected 5 | . . . 4 . . . . . . 1 . Parts Fused 1 | . . . . . . . . . . 1 . Data Loss (minor) 28 | . 2 . 8 . 3 . . . . 9 6 Data Loss (major) 9 | . 1 . 3 . 2 . . . . 2 1 Misfires 15 | . 1 . 6 1 2 . . . . 2 3 Alerts 5 | . . . 2 . . . . . . 2 1 Weapon Failures 15 | . . . 7 . . . . . . 7 1 Overload Shots . | . . . . . . . . . . . . Overflow Damage 313 | . . . 65 3 . . 38 24 19 103 61 Projectiles 131 | . . . 48 3 . . 38 . 19 23 . Explosions 161 | . . . . . . . . 20 . 80 61 Melee 21 | . . . 17 . . . . 4 . . . Knockbacks . | . . . . . . . . . . . . Impact . | . . . . . . . . . . . . Kinetic . | . . . . . . . . . . . . Secondary . | . . . . . . . . . . . . Self-Inflicted Damage 237 | 1 . . 22 . . . 1 . . 109 104 Shots 7 | . . . 1 . . . . . . 2 4 Rammed 5 | 1 . . 1 . . . 1 . . 2 . Targets Rammed 5 | 1 . . 1 . . . 1 . . 2 . Kicked . | . . . . . . . . . . . . Crushed . | . . . . . . . . . . . . Highest Temperature 438 | . 324 9 399 120 263 . 126 93 249 438 428 Average Temperature 71 | . 55 6 54 61 58 . 28 24 79 123 113 Received Heat Transfer 3723 | . 366 . 477 . . . 999 241 220 952 468 Effects 16 | . 1 . 4 . . . . . 1 5 5 Shutdowns 3 | . . . . . . . . . . 2 1 Energy Bleed 5 | . 1 . 1 . . . . . 1 . 2 Interference 6 | . . . 3 . . . . . . 3 . Short Circuit 1 | . . . . . . . . . . . 1 Damage (major) 1 | . . . . . . . . . . . 1 Siege Activations . | . . . . . . . . . . . . Robots Corrupted . | . . . . . . . . . . . . Combat Hostiles . | . . . . . . . . . . . . Parts Fried 2 | . . . . . . . . . . . 2 Impact Corruptions 1 | . . . 1 . . . . . . . . Robots Melted 23 | . 1 . 3 . . . 4 2 2 10 1 Combat Hostiles 19 | . 1 . 3 . . . 4 2 1 7 1 Parts Melted 121 | . 9 . 15 . . . 17 8 6 56 10 Heat Transferred 41653 | . 4709 37 6993 296 444 . 7955 1554 2128 15007 2530 Parts Sabotaged 4 | . . . . . . . . . . 4 . Parts Stolen . | . . . . . . . . . . . . Parts Stripped . | . . . . . . . . . . . . Power Chain Reactions 1 | . . . . . . . . . . 1 . Missiles Intercepted . | . . . . . . . . . . . . Alert | -11 -10 -10 -9 -9 -9 -8 -8 -8 -7 -6 -6 ------- Run | Jun Mat Min Mat Min Exi Min Mat Gar Fac Fac Gar Peak Influence 1878 | . 246 82 1005 451 . 48 607 1878 1053 900 1393 Initial 985 | . . 82 31 381 . . 18 394 985 493 630 Average 552 | . 81 82 433 437 . 29 369 1137 974 576 1061 Maximum Alert Level 5 | . 1 . 3 2 . . 2 5 3 3 4 Low Security (%) 24 | 100 86 100 18 . . 100 20 . . . . Level 1 13 | . 13 . 34 16 . . 31 . . . . Level 2 30 | . . . 30 83 . . 47 14 . 87 9 Level 3 20 | . . . 16 . . . . 39 100 12 35 Level 4 7 | . . . . . . . . 24 . . 55 Level 5 2 | . . . . . . . . 20 . . . High Security . | . . . . . . . . . . . . Max Security . | . . . . . . . . . . . . Sterilizations 1 | . . . 1 . . . . . . . . Squads Dispatched 42 | . 7 1 9 . . . 8 . 4 13 . Investigation 21 | . 6 1 6 . . . 4 . 2 2 . Extermination 6 | . . . . . . . . . 1 5 . Reinforcement 7 | . 1 . 2 . . . 1 . . 3 . Assault 5 | . . . 1 . . . 1 . 1 2 . Garrison 3 | . . . . . . . 2 . . 1 . Intercept . | . . . . . . . . . . . . Searches Triggered . | . . . . . . . . . . . . Construction Impeded . | . . . . . . . . . . . . Haulers Reinforced 2 | . . . . . . . . . . 2 . Active Scanning Responses . | . . . . . . . . . . . . Cargo Convoy Interrupts . | . . . . . . . . . . . . Stealth | -11 -10 -10 -9 -9 -9 -8 -8 -8 -7 -6 -6 --------- Run | Jun Mat Min Mat Min Exi Min Mat Gar Fac Fac Gar Distress Signals 11 | . . . 4 . . . 4 . 2 1 . Communications Jammed . | . . . . . . . . . . . . Distress Signals . | . . . . . . . . . . . . Times Spotted 311 | . 38 . 65 3 . . 59 33 19 62 32 Peak Tracking Total 8 | . 3 . 5 3 . . 6 7 4 7 8 Tactical Retreats 12 | . . . 1 . . . 3 1 2 2 3 Traps | -11 -10 -10 -9 -9 -9 -8 -8 -8 -7 -6 -6 ------- Run | Jun Mat Min Mat Min Exi Min Mat Gar Fac Fac Gar Traps Triggered 21 | . 4 . 1 . . . 2 7 2 3 2 Indirectly . | . . . . . . . . . . . . Trap Hack Attempts . | . . . . . . . . . . . . Triggered . | . . . . . . . . . . . . Disarmed . | . . . . . . . . . . . . Reprogrammed . | . . . . . . . . . . . . Reused . | . . . . . . . . . . . . Traps Extracted . | . . . . . . . . . . . . Installed . | . . . . . . . . . . . . Triggered . | . . . . . . . . . . . . Machines | -11 -10 -10 -9 -9 -9 -8 -8 -8 -7 -6 -6 ---------- Run | Jun Mat Min Mat Min Exi Min Mat Gar Fac Fac Gar Machines Disabled 20 | . . . 4 . . 1 1 8 1 2 3 Max in Single Turn 2 | . . . 1 . . . 1 1 1 2 2 Garrison Access 1 | . . . . . . . . . . 1 . Garrison Relay 6 | . . . . . . . . 5 . . 1 Phase Generator 1 | . . . . . . . . . . . 1 Machines Repaired . | . . . . . . . . . . . . Machines Sabotaged . | . . . . . . . . . . . . Overloaded Fab Kills . | . . . . . . . . . . . . Hacking | -11 -10 -10 -9 -9 -9 -8 -8 -8 -7 -6 -6 --------- Run | Jun Mat Min Mat Min Exi Min Mat Gar Fac Fac Gar Machines Accessed 50 | . 9 1 14 . 2 . 8 4 8 4 . Terminals 31 | . 7 1 9 . . . 5 4 4 1 . Fabricators 4 | . . . . . . . . . 3 1 . Repair Stations 2 | . . . 1 . . . 1 . . . . Recycling Units 5 | . 2 . 2 . . . . . 1 . . Scanalyzers 3 | . . . 2 . . . 1 . . . . Garrison Access 3 | . . . . . . . 1 . . 2 . Total Hacks 135 | . 30 2 42 . 2 . 20 11 20 8 . Successful 70 | . 15 . 26 . 2 . 8 2 11 6 . Failed 63 | . 15 2 15 . . . 11 9 9 2 . Catastrophic 10 | . 2 1 1 . . . 3 2 1 . . Database Lockouts 2 | . . . 1 . . . 1 . . . . Manual 76 | . 28 . 21 . 2 . 15 . 5 5 . Terminals 98 | . 26 2 28 . . . 15 11 12 4 . Fabricators 8 | . . . . . . . . . 7 1 . Repair Stations 5 | . . . 3 . . . 2 . . . . Recycling Units 11 | . 4 . 6 . . . . . 1 . . Scanalyzers 7 | . . . 5 . . . 2 . . . . Garrison Access 4 | . . . . . . . 1 . . 3 . Terminal Hacks 25 | . 6 . 8 . 2 . 2 2 4 1 . Record 1 | . . . . . 1 . . . . . . Robot Analysis 8 | . 2 . 4 . . . 2 . . . . Prototype ID Bank 3 | . 1 . 2 . . . . . . . . Level Access Points 1 | . . . . . . . . . 1 . . Branch Access Points 3 | . 1 . . . . . . . 1 1 . Emergency Access Points 1 | . . . . . . . . 1 . . . Hauler Manifests 2 | . 1 . 1 . . . . . . . . Zone Layout 4 | . 1 . 1 . . . . . 2 . . Garrison Registry 1 | . . . . . . . . 1 . . . EX-Prototype ID Bank 1 | . . . . . 1 . . . . . . Fabricator Hacks 3 | . . . . . . . . . 3 . . Load Schematic 1 | . . . . . . . . . 1 . . Build 2 | . . . . . . . . . 2 . . Repair Station Hacks 4 | . . . 2 . . . 2 . . . . Scan Component 2 | . . . 1 . . . 1 . . . . Repair 2 | . . . 1 . . . 1 . . . . Recycling Unit Hacks 2 | . . . 2 . . . . . . . . Retrieve Components 2 | . . . 2 . . . . . . . . Scanalyzer 6 | . . . 4 . . . 2 . . . . Insert Component 3 | . . . 2 . . . 1 . . . . Analyze 3 | . . . 2 . . . 1 . . . . Garrison Access Hacks 4 | . . . . . . . 1 . . 3 . Unlock Access 2 | . . . . . . . 1 . . 1 . Seal Access 1 | . . . . . . . . . . 1 . Coupler Status 1 | . . . . . . . . . . 1 . Unauthorized Hacks 25 | . 8 . 10 . . . 1 . 4 2 . Terminals 16 | . 5 . 7 . . . 1 . 2 1 . Botnet 12 | . 4 . 4 . . . 1 . 2 1 . Search 4 | . 1 . 3 . . . . . . . . Fabricators 3 | . . . . . . . . . 2 1 . Liberate 3 | . . . . . . . . . 2 1 . Repair Stations . | . . . . . . . . . . . . Recycling Units 5 | . 3 . 2 . . . . . . . . Reject 1 | . 1 . . . . . . . . . . Tunnel 4 | . 2 . 2 . . . . . . . . Scanalyzers 1 | . . . 1 . . . . . . . . Extract 1 | . . . 1 . . . . . . . . Garrison Access . | . . . . . . . . . . . . Data Cores Recovered 1 | . . . . . . . 1 . . . . Used . | . . . . . . . . . . . . Hacking Detections 35 | . 7 1 8 . . . 7 4 6 2 . Full Trace Events 18 | . 4 1 4 . . . 4 2 2 1 . Feedback Events . | . . . . . . . . . . . . Feedback Blocked . | . . . . . . . . . . . . Robot Schematics Acquired . | . . . . . . . . . . . . Robots Built . | . . . . . . . . . . . . Authchips . | . . . . . . . . . . . . Time . | . . . . . . . . . . . . Total Robot Build Rating . | . . . . . . . . . . . . Part Schematics Acquired 4 | . . . 3 . . . 1 . . . . Parts Built 3 | . . . . . . . . . 3 . . Authchips . | . . . . . . . . . . . . Time 126 | . . . . . . . . . 126 . . Total Part Build Rating 15 | . . . . . . . . . 15 . . Parts Repaired 2 | . . . 1 . . . 1 . . . . Time 58 | . . . 32 . . . 26 . . . . Parts Recycled . | . . . . . . . . . . . . Recycled Matter . | . . . . . . . . . . . . Retrieved Matter . | . . . . . . . . . . . . Retrieved Components 20 | . . . 20 . . . . . . . . Parts Scanalyzed 3 | . . . 2 . . . 1 . . . . Part Schematics Acquired 3 | . . . 2 . . . 1 . . . . Parts Damaged . | . . . . . . . . . . . . Bothacking | -11 -10 -10 -9 -9 -9 -8 -8 -8 -7 -6 -6 ------------ Run | Jun Mat Min Mat Min Exi Min Mat Gar Fac Fac Gar Used RIF Installer 1 | . . . . . . . . 1 . . . Robots Hacked 6 | . . . . . . . . 5 . . 1 Non-combat . | . . . . . . . . . . . . Combat 6 | . . . . . . . . 5 . . 1 Robot Hacks Applied 6 | . . . . . . . . 5 . . 1 parse_system 1 | . . . . . . . . 1 . . . overwrite_iff 1 | . . . . . . . . 1 . . . formatsys_high 4 | . . . . . . . . 3 . . 1 Relay Couplers Released 28 | . . . . . . . . 20 . . 8 Machine Destruction 24 | . . . . . . . . 20 . . 4 Programmers 4 | . . . . . . . . . . . 4 Attached 7 | . . . . . . . . 6 . . 1 Fabnet Peak Effective % . | . . . . . . . . . . . . Robots Rewired 2 | . . . . . 2 . . . . . . Allies Hacked . | . . . . . . . . . . . . Hacks Repelled . | . . . . . . . . . . . . Allies | -11 -10 -10 -9 -9 -9 -8 -8 -8 -7 -6 -6 -------- Run | Jun Mat Min Mat Min Exi Min Mat Gar Fac Fac Gar Total Allies 11 | . . . . . 2 . . 6 2 . 1 Largest Group 6 | . . . . . 2 2 2 6 2 . 1 Highest-Rated Group 123 | . . . . . 29 29 29 123 64 . 29 Highest-Rated Ally 39 | . . . . . 21 21 21 39 32 . 29 Total Orders . | . . . . . . . . . . . . Ally Attacks 111 | . . . . . . 4 24 71 8 . 4 Total Damage 1496 | . . . . . . 64 177 982 218 . 55 Kills 16 | . . . . . . 1 1 12 2 . . Allies Corrupted . | . . . . . . . . . . . . Allies Melted 1 | . . . . . . . . 1 . . . Intel | -11 -10 -10 -9 -9 -9 -8 -8 -8 -7 -6 -6 ------- Run | Jun Mat Min Mat Min Exi Min Mat Gar Fac Fac Gar Robot Analysis Total 8 | . 2 . 4 . . . 2 . . . . Derelict Logs Recovered . | . . . . . . . . . . . . Drone Launches . | . . . . . . . . . . . . Drone Recoveries . | . . . . . . . . . . . . Exploration | -11 -10 -10 -9 -9 -9 -8 -8 -8 -7 -6 -6 ------------- Run | Jun Mat Min Mat Min Exi Min Mat Gar Fac Fac Gar Turns Passed 16074 | 51 2887 286 3294 156 653 18 1735 1881 1085 2772 1256 Spaces Moved 7303 | 40 1493 82 1417 98 408 13 666 1005 500 1103 478 Core 6 | 2 . . . . . . . . . 2 2 Treads . | . . . . . . . . . . . . Legs . | . . . . . . . . . . . . Wheels 7297 | 38 1493 82 1417 98 408 13 666 1005 500 1101 476 Hover . | . . . . . . . . . . . . Flight . | . . . . . . . . . . . . Fastest Speed 50 | 50 100 140 140 145 145 145 140 135 116 125 50 Average Speed 145 | 97 134 140 144 145 145 145 150 145 150 134 202 Slowest Speed 1750 | 100 200 140 210 145 145 145 230 230 230 1750 245 Overloaded Moves . | . . . . . . . . . . . . Propulsion Burnouts . | . . . . . . . . . . . . Robots Hopped . | . . . . . . . . . . . . Cave-ins Triggered . | . . . . . . . . . . . . Exploration Rate (%) 48 | 3 96 19 91 22 88 6 51 93 16 29 63 Regions Visited 11 Branch Regions 4 Pre-discovered Areas 4 | . 2 . 2 . . . . . . . . Known Exits Taken 4 | . 1 . . . . . 1 . 1 1 . Unknown Exits Taken 6 | 1 . 1 1 1 1 1 . . . . . Scrap Searched . | . . . . . . . . . . . . Spaces Dug 12 | . . . . . . . . 12 . . . Terrain Destroyed 183 | . . . 29 . . . . 19 . 19 116 Melee . | . . . . . . . . . . . . Projectile 6 | . . . . . . . . . . 4 2 AOE 177 | . . . 29 . . . . 19 . 15 114 Terrain Rammed . | . . . . . . . . . . . . Walls Destroyed . | . . . . . . . . . . . . Machines Disabled . | . . . . . . . . . . . . Actions | -11 -10 -10 -9 -9 -9 -8 -8 -8 -7 -6 -6 --------- Run | Jun Mat Min Mat Min Exi Min Mat Gar Fac Fac Gar Total 11248 | 48 2132 250 2372 102 452 12 1142 1313 770 2009 646 Wait 2610 | . 482 165 694 . 7 . 259 136 187 622 58 Move 7292 | 39 1492 81 1416 97 407 12 666 1003 499 1102 478 Hop . | . . . . . . . . . . . . Pick Up 153 | 1 22 1 41 . 2 . 31 14 14 26 1 Fast Attach 75 | 6 3 . 10 . 5 . 5 8 10 22 6 Attach 87 | . 5 . 15 . 1 . 15 7 5 23 16 Detach 9 | . 2 . . . . . . 1 . 1 5 Swap 73 | 1 5 2 10 . 1 . 6 25 9 8 6 Drop 119 | . 3 . 30 . 7 . 25 16 15 20 3 Fire 745 | . 118 1 155 5 9 . 135 47 31 183 61 Melee 27 | . . . . . . . . 23 . . 4 Ram 4 | 1 . . 1 . . . . . . 2 . Kick . | . . . . . . . . . . . . Crush . | . . . . . . . . . . . . Escape Stasis 40 | . . . . . . . . 32 . . 8 Rewire 14 | . . . . . 13 . . 1 . . . Trap . | . . . . . . . . . . . . Miscellaneous . | . . . . . . . . . . . . Route ------- -11/Junkyard -10/Materials (discovered 4 exits: *Mat x3 / *Min) -10/Mines -9/Materials (discovered 7 exits: *Mat x3 / [*Min x2] / [*Sto x2]) -9/Mines -9/Exiles -8/Mines -8/Materials (discovered 2 exits: *Fac / Gar) -8/Garrison (discovered 3 exits: *Fac x3) -7/Factory (discovered 6 exits: *Fac x4 / *Low x2) -6/Factory (discovered 5 exits: Low x2 / Ext x2 / Gar) -6/Garrison (discovered 2 exits: *Ext x2) History --------- Turn | Location | Event 35 | -11/Junkyard | Discovered new exit (range 16) 52 | -11/Junkyard | Entered Materials 161 | -10/Materials | Discovered new exit (range 8) 316 | -10/Materials | Build established: Mutant 1057 | -10/Materials | Discovered new exit (range 7) 1235 | -10/Materials | Core integrity fell below 50% 1592 | -10/Materials | Build established: Scavenger-Mutant 1928 | -10/Materials | Discovered new exit (range 15) 2080 | -10/Materials | Identified exit to Mines 2820 | -10/Materials | Core integrity fell below 20% 2939 | -10/Materials | Entered Mines 2974 | -10/Mines | Assembled infested the area 2979 | -10/Mines | Assisted by a Guerilla fighting off Assembled 3098 | -10/Mines | Build established: Mutant 3166 | -10/Mines | Received a Rocket Launcher from a helpful Derelict 3218 | -10/Mines | Discovered new exit (range 4) 3225 | -10/Mines | Entered Materials 3225 | -9/Materials | Evolved 2 slots: Utility x2 3545 | -9/Materials | Lost 3 parts (1p1n1w) 3641 | -9/Materials | Build established: Scavenger-Mutant 3789 | -9/Materials | Discovered new exit (range 13) 3904 | -9/Materials | Discovered new exit (range 14) 4092 | -9/Materials | Discovered new exit (range 5) 4143 | -9/Materials | Discovered new exit (range 12) 4631 | -9/Materials | Discovered new exit (range 7) 4680 | -9/Materials | Build established: Mutant 4888 | -9/Materials | Discovered new exit (range 12) 5768 | -9/Materials | Discovered new exit (range 16) 6011 | -9/Materials | Repaired Arm. Wheel 6025 | -9/Materials | First assault squad dispatched 6086 | -9/Materials | Core integrity fell below 50% 6158 | -9/Materials | Central database locked down 6267 | -9/Materials | Build established: Scavenger-Mutant 6393 | -9/Materials | Sterilization system engaged 6393 | -9/Materials | Non-combat units ordered to evacuate 6493 | -9/Materials | Combat units ordered to evacuate 6519 | -9/Materials | Entered Mines 6661 | -9/Mines | Deemed a non-threat by the Exiles lab entrance 6661 | -9/Mines | Discovered new exit (range 5) 6675 | -9/Mines | Entered Exiles 6675 | -9/Exiles | Found Exiles lab destroyed 7150 | -9/Exiles | Opened EX-Vault 7164 | -9/Exiles | Found Longsword +1 7302 | -9/Exiles | Discovered new exit (range 14) 7328 | -9/Exiles | Entered Mines 7328 | -8/Mines | Accompanied by 2 allies 7340 | -8/Mines | Discovered new exit (range 4) 7346 | -8/Mines | Entered Materials 7346 | -8/Materials | Accompanied by 2 allies 7346 | -8/Materials | Evolved 2 slots: Utility x2 8072 | -8/Materials | Central database locked down 8090 | -8/Materials | Lost 3 parts (1p1u1w) 8370 | -8/Materials | Repaired Wheel 8496 | -8/Materials | Core integrity fell below 50% 8881 | -8/Materials | Discovered new exit (range 15) 8900 | -8/Materials | Identified exit to Garrison 8941 | -8/Materials | Garrison activated, responded to threat 8946 | -8/Materials | First assault squad dispatched 9039 | -8/Materials | Lost 4 parts (1p1n1u1w) 9081 | -8/Materials | Entered Garrison 9208 | -8/Garrison | Triggered checkpoint 9368 | -8/Garrison | Core integrity fell below 20% 9400 | -8/Garrison | Lost 5 parts (2p1n1u1w) 9484 | -8/Garrison | Triggered checkpoint 9585 | -8/Garrison | Installed Relay Interface Framework 9637 | -8/Garrison | Build established: Mutant 9656 | -8/Garrison | Discovered new exit (range 12) 9675 | -8/Garrison | Garrison Relay disabled 10012 | -8/Garrison | Garrison Relay disabled 10057 | -8/Garrison | Triggered checkpoint 10135 | -8/Garrison | Discovered new exit (range 12) 10164 | -8/Garrison | Triggered checkpoint 10199 | -8/Garrison | Garrison Relay disabled 10257 | -8/Garrison | Rescued a captive Derelict 10259 | -8/Garrison | Rescued a captive Derelict 10485 | -8/Garrison | Discovered new exit (range 10) 10516 | -8/Garrison | Triggered checkpoint 10568 | -8/Garrison | Garrison Relay disabled 10602 | -8/Garrison | Garrison Relay disabled 10642 | -8/Garrison | Discovered new exit (range 68) 10642 | -8/Garrison | Discovered new exit (range 42) 10642 | -8/Garrison | Discovered new exit (range 20) 10826 | -8/Garrison | P-60 Hacker assimilated allied WV-T32(h) 10857 | -8/Garrison | P-60 Hacker assimilated allied Trooper 3b 10962 | -8/Garrison | Entered Factory 10962 | -7/Factory | Evolved 2 slots: Propulsion x1, Utility x1 10996 | -7/Factory | Build established: Scavenger-Mutant 11026 | -7/Factory | Identified exit to Lower Caves 11188 | -7/Factory | Identified exit to Factory 11358 | -7/Factory | Fabricated Hacking Suite (x1) 11426 | -7/Factory | Lost 4 parts (1p2n1u) 11557 | -7/Factory | Fabricated Adv. Shield Generator? 11596 | -7/Factory | Build established: Mutant 11762 | -7/Factory | First assault squad dispatched 12025 | -7/Factory | Build established: Scavenger-Mutant 12047 | -7/Factory | Entered another Factory area 12047 | -6/Factory | Evolved 2 slots: Power x1, Utility x1 12274 | -6/Factory | Lost 3 parts (1n2u) 12404 | -6/Factory | System corruption reached 10% 12747 | -6/Factory | First assault squad dispatched 14130 | -6/Factory | Identified exit to Lower Caves 14130 | -6/Factory | Identified exit to Extension 14278 | -6/Factory | Lost 3 parts (1p1u1w) 14375 | -6/Factory | Lost 12 parts (2p2n5u3w) 14592 | -6/Factory | Spotted B-75 Beast 14728 | -6/Factory | Garrison activated, responded to threat 14815 | -6/Factory | Identified exit to Garrison 14819 | -6/Factory | Entered Garrison 14963 | -6/Garrison | Core integrity fell below 50% 15056 | -6/Garrison | Garrison Relay disabled 15118 | -6/Garrison | Phase Generator disabled 15219 | -6/Garrison | Lost 5 parts (2n2u1w) 15235 | -6/Garrison | Triggered checkpoint 15404 | -6/Garrison | Lost 4 parts (2u2w) 15418 | -6/Garrison | Triggered checkpoint 15480 | -6/Garrison | Core integrity fell below 20% 15600 | -6/Garrison | Discovered exit to Extension (range 14) 15644 | -6/Garrison | Spotted Striker 15644 | -6/Garrison | Spotted Striker 15815 | -6/Garrison | Spotted B-75 Beast 15817 | -6/Garrison | Spotted B-75 Beast 15873 | -6/Garrison | Triggered checkpoint 15906 | -6/Garrison | Lost 7 parts (2p3u2w) 15988 | -6/Garrison | Triggered checkpoint 16041 | -6/Garrison | Discovered exit to Extension (range 9) 16075 | -6/Garrison | Destroyed by Y-54 Guardian with Gatling Laser Last Messages --------------- 15872_ Hvy. Laser destroyed. 15873_ Y-54 Guardian destroyed. 15875_ Rocket Launcher destroyed. 15879_ Y-54 Guardian destroyed. 15882_ Acquired 36 matter. 15902_ The unstable cave ceiling collapses. 15925_ System corrupted: Component data lost. 15955_ System corrupted: Heat flow error (+138). 15971_ The unstable cave ceiling collapses. 15971_ 43 Matter crushed. 16019_ ALERT: Garrison interior compromised. 16020_ System corrupted: Matter fused (-5). 16041_ EXIT=FOUND: EXTENSION 16049_ 704A1YYMUHY AJ%#8Y5EKS9GD#4>G> 16064_ OFRUW|JPH0/NIFF